fUSD/lending_fUSD_20240620
["ID","MTS","AMOUNT","RATE_DAILY","PERIOD"]
[329966476,1718878240725,-500.0,0.00013698,2]
[329966477,1718878240734,-500.0,0.00013698,2]
[329966478,1718878240744,-670.91,0.00013698,2]
[329966479,1718878240754,-500.0,0.00013698,2]
[329966480,1718878240764,-500.0,0.00013698,2]
[329966481,1718878240773,-500.0,0.00013698,2]
[329966482,1718878240783,-500.0,0.00013698,2]
[329966483,1718878240792,-500.0,0.00013698,2]
[329966484,1718878240802,-500.0,0.00013698,2]
[329966485,1718878240811,-500.0,0.00013698,2]
[329966486,1718878240820,-500.0,0.00013698,2]
[329966487,1718878240830,-500.0,0.00013698,2]
[329966488,1718878240839,-672.21,0.00013698,2]
[329966490,1718878240849,-500.0,0.00013698,2]
[329966491,1718878240858,-500.0,0.00013698,2]
[329966492,1718878240867,-500.0,0.00013698,2]
[329966493,1718878240877,-500.0,0.00013698,2]
[329966494,1718878240886,-500.0,0.00013698,2]
[329966495,1718878240896,-500.0,0.00013698,2]
[329966496,1718878240905,-500.0,0.00013698,2]
[329966497,1718878240915,-897.74,0.00013698,2]
[329966498,1718878240924,-500.0,0.00013698,2]
[329966499,1718878240934,-919.99,0.00013698,2]
[329966500,1718878240946,-888.03,0.00013698,2]
[329966501,1718878240955,-500.0,0.00013698,2]
[329966502,1718878240965,-500.0,0.00013698,2]
[329966503,1718878240975,-283.08578745,0.00013698,2]
[329966504,1718878240989,-216.91421255,0.00013698,2]
[329966505,1718878240999,-500.0,0.00013698,2]
[329966506,1718878241009,-754.68,0.00013698,2]
[329966507,1718878241018,-347.30578745,0.00013698,2]
[329966540,1718878243251,-270.65421255,0.00013698,2]
[329966541,1718878243262,-195.29410335,0.00013698,2]
[329966542,1718878243272,-500.0,0.00013698,2]
[329966543,1718878243281,-509.07,0.00013698,2]
[329966544,1718878243291,-500.0,0.00013698,2]
[329966545,1718878243300,-553.64,0.00013698,2]
[329966546,1718878243310,-500.0,0.00013698,2]
[329966547,1718878243321,-718.27,0.00013698,2]
[329966548,1718878243330,-500.0,0.00013698,2]
[329966549,1718878243339,-510.73,0.00013698,2]
[329966550,1718878243348,-500.0,0.00013698,2]
[329966551,1718878243357,-500.0,0.00013698,2]
[329966552,1718878243367,-500.0,0.00013698,2]
[329966553,1718878243376,-606.36,0.00013698,2]
[329966554,1718878243386,-500.0,0.00013698,2]
[329966555,1718878243397,-686.5,0.00013698,2]
[329966556,1718878243406,-500.0,0.00013698,2]
[329966557,1718878243417,-508.72,0.00013698,2]
[329966558,1718878243428,-500.0,0.00013698,2]
[329966559,1718878243440,-500.0,0.00013698,2]
[329966560,1718878243450,-500.0,0.00013698,2]
[329966561,1718878243459,-176.02,0.00013698,2]
[329966562,1718878243468,-879.69,0.00013698,2]
[329966563,1718878243478,-500.0,0.00013698,2]
[329966564,1718878243489,-500.0,0.00013698,2]
[329966565,1718878243499,-537.03,0.00013698,2]
[329966566,1718878243510,-582.11,0.00013698,2]
[329966567,1718878243520,-500.0,0.00013698,2]
[329966568,1718878243530,-500.0,0.00013698,2]
[329966569,1718878243596,-500.0,0.00013698,2]
[329966570,1718878243606,-500.0,0.00013698,2]
[329966571,1718878243615,-500.0,0.00013698,2]
[329966572,1718878243625,-801.19,0.00013698,2]
[329966573,1718878243634,-500.0,0.00013698,2]
[329966574,1718878243644,-500.0,0.00013698,2]
[329966575,1718878243654,-500.0,0.00013698,2]
[329966576,1718878243664,-500.0,0.00013698,2]
[329966577,1718878243674,-500.0,0.00013698,2]
[329966578,1718878243682,-551.37,0.00013698,2]
[329966579,1718878243692,-500.0,0.00013698,2]
[329966580,1718878243702,-500.0,0.00013698,2]
[329966581,1718878243711,-500.0,0.00013698,2]
[329966582,1718878243721,-500.0,0.00013698,2]
[329966583,1718878243730,-500.0,0.00013698,2]
[329966584,1718878243741,-500.0,0.00013698,2]
[329966585,1718878243750,-500.0,0.00013698,2]
[329966587,1718878243760,-683.8,0.00013698,2]
[329966588,1718878243769,-487.22773578,0.00013698,2]
[329966592,1718878246275,-12.77226422,0.00013698,2]
[329966593,1718878246284,-645.6,0.00013698,2]
[329966594,1718878246295,-253.202643,0.00013698,2]
[329966595,1718878246304,-253.202643,0.00013698,2]
[329966596,1718878246314,-500.0,0.00013698,2]
[329966597,1718878246323,-500.0,0.00013698,2]
[329966598,1718878246332,-253.202643,0.00013698,2]
[329966599,1718878246342,-100.76895791,0.00013698,2]
[329966600,1718878246353,-152.43368509,0.00013698,2]
[329966601,1718878246362,-500.0,0.00013698,2]
[329966602,1718878246371,-211.54358244,0.00013698,2]
[329966603,1718878246383,-288.45641756,0.00013698,2]
[329966604,1718878246392,-11.51858244,0.00013698,2]
[329966605,1718878246404,-607.94141756,0.00013698,2]
[329966606,1718878246413,-352.86670245,0.00013698,2]
[329966607,1718878246424,-147.13329755,0.00013698,2]
[329966608,1718878246433,-175.75830245,0.00013698,2]
[329966610,1718878247190,291.13125295,0.0001,2]
[329966611,1718878248758,340.10818812,9.5e-05,2]
[329966612,1718878248782,473.48989916,9.5e-05,2]
[329966613,1718878256580,3998.93711447,0.0001,2]
[329966614,1718878262959,20286.29635735,0.0001,2]
[329966617,1718878325793,500.0,0.0001,2]
[329966618,1718878326255,500.0,0.0001,2]
[329966619,1718878326630,500.0,0.0001,2]
[329966620,1718878327746,500.0,0.0001,2]
[329966621,1718878328220,500.0,0.0001,2]
[329966628,1718878330102,500.0,0.0001,2]
[329966629,1718878330237,500.0,0.0001,2]
[329966630,1718878330704,806.0,0.0001,2]
[329966631,1718878345291,575.24875733,0.00013696,7]
[329966632,1718878356077,155.0,0.0001,2]
[329966634,1718878377724,258.35575869,0.0001,2]
[329966637,1718878670747,174.5,0.00026,90]
[329966638,1718878806480,456.02,9.614e-05,2]
[329966657,1718879354596,433.21,9.376e-05,2]
[329966663,1718879432191,-474.21030632,0.00010958,2]
[329966664,1718879432200,-300.78969108,0.00010958,2]
[329966665,1718879432212,-318.64482262,0.00010958,2]
[329966666,1718879432224,-9913.29886338,0.00010958,2]
[329966667,1718879432234,-400.0,0.00010959,2]
[329966668,1718879432244,-9234.97316705,0.00010959,2]
[329966669,1718879432255,-1627.43137048,0.0001096,2]
[329966670,1718879432264,-155.0,0.00010961,2]
[329966671,1718879432273,-430.3891543,0.00010961,2]
[329966672,1718879432283,-300.0,0.00010961,2]
[329966673,1718879432293,-150.0,0.00010961,2]
[329966674,1718879432303,-150.0,0.00010961,2]
[329966675,1718879432316,-150.0,0.00010961,2]
[329966676,1718879432327,-4298.12634448,0.00010961,2]
[329966677,1718879432337,-934.04692579,0.00011034,2]
[329966678,1718879432347,-500.0,0.00011254,2]
[329966679,1718879432357,-286.59,0.00011278,2]
[329966680,1718879432366,-200.0,0.00011329,2]
[329966681,1718879432376,-161.36,0.00011356,2]
[329966682,1718879432386,-23890.0,0.00011357,2]
[329966683,1718879432396,-250.0,0.00011368,2]
[329966684,1718879432406,-2355.93,0.00011368,2]
[329966685,1718879432416,-2622.04,0.00011378,2]
[329966686,1718879432425,-250.0,0.00011378,2]
[329966687,1718879432435,-161.36,0.00011387,2]
[329966688,1718879432444,-150.0,0.000114,2]
[329966689,1718879432454,-499.99,0.000114,2]
[329966690,1718879432464,-250.0,0.00011415,2]
[329966691,1718879432473,-161.36,0.00011418,2]
[329966692,1718879432483,-161.36,0.00011449,2]
[329966693,1718879432493,-161.36,0.0001148,2]
[329966694,1718879432504,-161.36,0.00011512,2]
[329966695,1718879432514,-161.36,0.00011543,2]
[329966696,1718879432524,-165.3,0.00011547,2]
[329966697,1718879432533,-161.36,0.00011574,2]
[329966698,1718879432543,-165.3,0.00011576,2]
[329966699,1718879432552,-165.3,0.00011605,2]
[329966700,1718879432563,-161.36,0.00011605,2]
[329966701,1718879432574,-161.36,0.00011636,2]
[329966702,1718879432583,-433.21,0.0001164,2]
[329966703,1718879432593,-161.36,0.00011667,2]
[329966704,1718879432602,-161.36,0.00011698,2]
[329966706,1718879432612,-161.36,0.0001173,2]
[329966708,1718879432626,-161.36,0.00011761,2]
[329966710,1718879432636,-161.36,0.00011792,2]
[329966712,1718879432646,-161.36,0.00011823,2]
[329966714,1718879432656,-161.36,0.00011854,2]
[329966716,1718879432667,-161.36,0.00011885,2]
[329966718,1718879432677,-1000.0,0.00011887,2]
[329966720,1718879432687,-554.54,0.00011887,2]
[329966722,1718879432697,-161.36,0.00011917,2]
[329966724,1718879432707,-161.36,0.00011948,2]
[329966726,1718879432717,-9999.99,0.00011962,2]
[329966728,1718879432727,-167.91,0.00012423,2]
[329966730,1718879432738,-152.68,0.00012441,2]
[329966732,1718879432748,-175.54,0.00012564,2]
[329966734,1718879432761,-13504.3976117,0.00012731,2]
[329966735,1718879432771,-258.328,0.00012911,2]
[329966736,1718879432781,-1302.30583545,0.00013011,2]
[329966737,1718879432791,-1000.0,0.00013373,2]
[329966738,1718879432801,-383.08543461,0.00013439,2]
[329966739,1718879432812,-189.27721259,0.00013598,2]
[329966740,1718879432822,-378.15062046,0.00013598,2]
[329966741,1718879432832,-696.58974524,0.00013598,2]
[329966742,1718879432842,-3510.731,0.00013598,2]
[329966743,1718879432852,-147504.0241,0.00013598,2]
[329966744,1718879432863,-374.8776,0.00013598,2]
[329966745,1718879432873,-277.887,0.00013598,2]
[329966746,1718879432883,-414.21555173,0.00013688,2]
[329966747,1718879432893,-158.54784222,0.00013688,2]
[329966748,1718879432903,-506.31,0.00013688,2]
[329966749,1718879432913,-506.31,0.00013688,2]
[329966750,1718879432923,-378.15062036,0.00013691,2]
[329966751,1718879432932,-180.28067388,0.00013696,2]
[329966752,1718879432942,-410.0140434,0.00013696,2]
[329966753,1718879432951,-155.97439403,0.00013696,2]
[329966754,1718879432962,-3790.97704598,0.00013696,2]
[329966755,1718879432972,-155.0,0.00013696,2]
[329966756,1718879432982,-561.93794192,0.00013696,2]
[329966757,1718879432992,-176.22036334,0.00013696,2]
[329966758,1718879433004,-296.95413331,0.00013696,2]
[329966759,1718879433013,-155.0,0.00013696,2]
[329966760,1718879433022,-156.28424645,0.00013696,2]
[329966761,1718879433031,-482.20345865,0.00013696,2]
[329966762,1718879433041,-263.91864438,0.00013696,2]
[329966763,1718879433050,-155.30363333,0.00013696,2]
[329966764,1718879433060,-155.38397192,0.00013696,2]
[329966765,1718879433069,-3389.45183201,0.00013696,2]
[329966766,1718879433079,-722.20467745,0.00013696,2]
[329966767,1718879433088,-193.29781389,0.00013696,2]
[329966768,1718879433098,-787.03385046,0.00013696,2]
[329966769,1718879433107,-1442.11852498,0.00013696,2]
[329966770,1718879433121,-1405.11708255,0.00013696,2]
[329966771,1718879433132,-158.50311314,0.00013696,2]
[329966772,1718879433142,-155.0,0.00013696,2]
[329966773,1718879433151,-3067.01080739,0.00013696,2]
[329966774,1718879433160,-1956.2379987,0.00013696,2]
[329966775,1718879433170,-506.80366576,0.00013696,2]
[329966776,1718879433180,-241.86774518,0.00013696,2]
[329966777,1718879433189,-155.24582795,0.00013696,2]
[329966778,1718879433199,-254.21963715,0.00013697,2]
[329966779,1718879433209,-212.38539843,0.00013697,2]
[329966780,1718879433218,-151.0,0.00013698,2]
[329966781,1718879433228,-500.0,0.00013698,2]
[329966782,1718879433237,-500.0,0.00013698,2]
[329966783,1718879433247,-500.0,0.00013698,2]
[329966784,1718879433257,-151.0,0.00013698,2]
[329966785,1718879433267,-500.0,0.00013698,2]
[329966786,1718879433276,-500.0,0.00013698,2]
[329966787,1718879433286,-500.0,0.00013698,2]
[329966788,1718879433295,-500.0,0.00013698,2]
[329966789,1718879433305,-291.361016,0.00013698,2]
[329966790,1718879433314,-500.0,0.00013698,2]
[329966791,1718879433324,-500.0,0.00013698,2]
[329966792,1718879433333,-500.0,0.00013698,2]
[329966793,1718879433343,-500.0,0.00013698,2]
[329966794,1718879433352,-500.0,0.00013698,2]
[329966795,1718879433361,-500.0,0.00013698,2]
[329966796,1718879433371,-500.0,0.00013698,2]
[329966797,1718879433381,-500.0,0.00013698,2]
[329966798,1718879433390,-500.0,0.00013698,2]
[329966799,1718879433399,-500.0,0.00013698,2]
[329966800,1718879433411,-500.0,0.00013698,2]
[329966801,1718879433420,-500.0,0.00013698,2]
[329966802,1718879433433,-500.0,0.00013698,2]
[329966803,1718879433442,-500.0,0.00013698,2]
[329966804,1718879433452,-500.0,0.00013698,2]
[329966805,1718879433461,-593.02222674,0.00013698,2]
[329966806,1718879433471,-151.0,0.00013698,2]
[329966807,1718879433480,-500.0,0.00013698,2]
[329966808,1718879433491,-500.0,0.00013698,2]
[329966809,1718879433501,-156.167935,0.00013698,2]
[329966810,1718879433513,-500.0,0.00013698,2]
[329966811,1718879433522,-500.0,0.00013698,2]
[329966812,1718879433532,-500.0,0.00013698,2]
[329966813,1718879433541,-500.0,0.00013698,2]
[329966814,1718879433551,-500.0,0.00013698,2]
[329966815,1718879433560,-588.07705349,0.00013698,2]
[329966816,1718879433570,-267.04366449,0.00013698,2]
[329966817,1718879433579,-500.0,0.00013698,2]
[329966818,1718879433588,-500.0,0.00013698,2]
[329966819,1718879433598,-500.0,0.00013698,2]
[329966820,1718879433607,-500.0,0.00013698,2]
[329966821,1718879433619,-500.0,0.00013698,2]
[329966822,1718879433630,-500.0,0.00013698,2]
[329966823,1718879433642,-500.0,0.00013698,2]
[329966824,1718879433652,-500.0,0.00013698,2]
[329966825,1718879433662,-500.0,0.00013698,2]
[329966826,1718879433672,-500.0,0.00013698,2]
[329966827,1718879433681,-500.0,0.00013698,2]
[329966828,1718879433690,-500.0,0.00013698,2]
[329966829,1718879433702,-500.0,0.00013698,2]
[329966830,1718879433712,-151.0,0.00013698,2]
[329966831,1718879433722,-151.0,0.00013698,2]
[329966832,1718879433731,-151.0,0.00013698,2]
[329966833,1718879433741,-500.0,0.00013698,2]
[329966834,1718879433750,-500.0,0.00013698,2]
[329966835,1718879433761,-873.43,0.00013698,2]
[329966836,1718879433771,-993.11,0.00013698,2]
[329966837,1718879433780,-151.0,0.00013698,2]
[329966838,1718879433790,-151.0,0.00013698,2]
[329966839,1718879433801,-500.0,0.00013698,2]
[329966840,1718879433811,-578.65,0.00013698,2]
[329966841,1718879433820,-500.0,0.00013698,2]
[329966842,1718879433830,-500.0,0.00013698,2]
[329966843,1718879433839,-500.0,0.00013698,2]
[329966844,1718879433848,-500.0,0.00013698,2]
[329966845,1718879433858,-500.0,0.00013698,2]
[329966846,1718879433868,-500.0,0.00013698,2]
[329966847,1718879433879,-500.0,0.00013698,2]
[329966848,1718879433890,-500.0,0.00013698,2]
[329966849,1718879433899,-500.0,0.00013698,2]
[329966850,1718879433908,-500.0,0.00013698,2]
[329966851,1718879433918,-500.0,0.00013698,2]
[329966852,1718879433928,-500.0,0.00013698,2]
[329966853,1718879433938,-1995.26,0.00013698,2]
[329966854,1718879433947,-500.0,0.00013698,2]
[329966855,1718879433958,-642.95,0.00013698,2]
[329966856,1718879433967,-500.0,0.00013698,2]
[329966857,1718879433977,-500.0,0.00013698,2]
[329966858,1718879433987,-500.0,0.00013698,2]
[329966859,1718879433997,-500.0,0.00013698,2]
[329966860,1718879434007,-566.58,0.00013698,2]
[329966861,1718879434016,-500.0,0.00013698,2]
[329966862,1718879434025,-500.0,0.00013698,2]
[329966863,1718879434035,-673.05,0.00013698,2]
[329966864,1718879434044,-179.280745,0.00013698,2]
[329966865,1718879434054,-500.0,0.00013698,2]
[329966866,1718879434063,-500.0,0.00013698,2]
[329966867,1718879434073,-500.0,0.00013698,2]
[329966868,1718879434082,-556.25,0.00013698,2]
[329966869,1718879434092,-500.0,0.00013698,2]
[329966870,1718879434101,-500.0,0.00013698,2]
[329966871,1718879434111,-500.0,0.00013698,2]
[329966872,1718879434120,-500.0,0.00013698,2]
[329966873,1718879434130,-500.0,0.00013698,2]
[329966874,1718879434139,-500.0,0.00013698,2]
[329966875,1718879434149,-500.0,0.00013698,2]
[329966876,1718879434159,-500.0,0.00013698,2]
[329966877,1718879434168,-500.0,0.00013698,2]
[329966878,1718879434178,-542.16,0.00013698,2]
[329966879,1718879434188,-500.0,0.00013698,2]
[329966880,1718879434197,-500.0,0.00013698,2]
[329966881,1718879434207,-579.18,0.00013698,2]
[329966882,1718879434216,-306.66798973,0.00013698,2]
[329966883,1718879434264,-193.33201027,0.00013698,2]
[329966884,1718879434274,-151.0,0.00013698,2]
[329966885,1718879434284,-372.26187036,0.00013698,2]
[329966886,1718879434297,-127.73812964,0.00013698,2]
[329966887,1718879434307,-843.04,0.00013698,2]
[329966888,1718879434317,-500.0,0.00013698,2]
[329966889,1718879434326,-500.0,0.00013698,2]
[329966890,1718879434336,-153.064095,0.00013698,2]
[329966891,1718879434346,-500.0,0.00013698,2]
[329966892,1718879434355,-33.23808886,0.00013698,2]
[329966893,1718879434367,-466.76191114,0.00013698,2]
[329966894,1718879434375,-500.0,0.00013698,2]
[329966895,1718879434385,-544.06,0.00013698,2]
[329966896,1718879434394,-500.0,0.00013698,2]
[329966897,1718879434403,-500.0,0.00013698,2]
[329966898,1718879434413,-94.97462726,0.00013698,2]
[329966899,1718879434424,-405.02537274,0.00013698,2]
[329966900,1718879434434,-500.0,0.00013698,2]
[329966901,1718879434443,-500.0,0.00013698,2]
[329966902,1718879434451,-500.0,0.00013698,2]
[329966903,1718879434460,-500.0,0.00013698,2]
[329966904,1718879434470,-500.0,0.00013698,2]
[329966905,1718879434479,-500.0,0.00013698,2]
[329966906,1718879434488,-500.0,0.00013698,2]
[329966907,1718879434497,-669.63,0.00013698,2]
[329966908,1718879434507,-500.0,0.00013698,2]
[329966909,1718879434516,-500.0,0.00013698,2]
[329966910,1718879434525,-151.0,0.00013698,2]
[329966911,1718879434534,-500.0,0.00013698,2]
[329966912,1718879434543,-500.0,0.00013698,2]
[329966913,1718879434553,-525.38,0.00013698,2]
[329966914,1718879434562,-500.0,0.00013698,2]
[329966915,1718879434571,-500.0,0.00013698,2]
[329966916,1718879434580,-151.0,0.00013698,2]
[329966917,1718879434589,-151.0,0.00013698,2]
[329966918,1718879434599,-500.0,0.00013698,2]
[329966919,1718879434609,-500.0,0.00013698,2]
[329966920,1718879434623,-500.0,0.00013698,2]
[329966921,1718879434632,-500.0,0.00013698,2]
[329966922,1718879434642,-500.0,0.00013698,2]
[329966923,1718879434651,-640.01,0.00013698,2]
[329966924,1718879434662,-500.0,0.00013698,2]
[329966925,1718879434671,-151.934485,0.00013698,2]
[329966926,1718879434680,-500.0,0.00013698,2]
[329966927,1718879434690,-500.0,0.00013698,2]
[329966928,1718879434703,-667.4,0.00013698,2]
[329966929,1718879434713,-508.9,0.00013698,2]
[329966930,1718879434722,-500.0,0.00013698,2]
[329966931,1718879434731,-152.977553,0.00013698,2]
[329966932,1718879434740,-500.0,0.00013698,2]
[329966933,1718879434749,-500.0,0.00013698,2]
[329966934,1718879434760,-500.0,0.00013698,2]
[329966935,1718879434769,-500.0,0.00013698,2]
[329966936,1718879434778,-500.0,0.00013698,2]
[329966937,1718879434788,-529.72,0.00013698,2]
[329966938,1718879434797,-500.0,0.00013698,2]
[329966939,1718879434806,-500.0,0.00013698,2]
[329966940,1718879434815,-151.0,0.00013698,2]
[329966941,1718879434824,-316.0476379,0.00013698,2]
[329966942,1718879434834,-500.0,0.00013698,2]
[329966943,1718879434843,-500.0,0.00013698,2]
[329966944,1718879434852,-151.0,0.00013698,2]
[329966945,1718879434861,-500.0,0.00013698,2]
[329966946,1718879434871,-500.0,0.00013698,2]
[329966947,1718879434880,-151.0,0.00013698,2]
[329966948,1718879434890,-500.0,0.00013698,2]
[329966949,1718879434899,-151.0,0.00013698,2]
[329966950,1718879434909,-151.0,0.00013698,2]
[329966951,1718879434919,-151.0,0.00013698,2]
[329966952,1718879434929,-500.0,0.00013698,2]
[329966953,1718879434939,-500.0,0.00013698,2]
[329966954,1718879434949,-563.53,0.00013698,2]
[329966955,1718879434958,-151.0,0.00013698,2]
[329966956,1718879434968,-151.0,0.00013698,2]
[329966957,1718879434977,-151.0,0.00013698,2]
[329966958,1718879434987,-625.47,0.00013698,2]
[329966959,1718879434996,-151.0,0.00013698,2]
[329966960,1718879435257,-500.0,0.00013698,2]
[329966961,1718879435267,-500.0,0.00013698,2]
[329966962,1718879435276,-168.69,0.00013698,2]
[329966963,1718879435286,-151.0,0.00013698,2]
[329966964,1718879435295,-500.0,0.00013698,2]
[329966965,1718879435306,-500.0,0.00013698,2]
[329966966,1718879435315,-151.0,0.00013698,2]
[329966967,1718879435325,-500.0,0.00013698,2]
[329966968,1718879435335,-151.0,0.00013698,2]
[329966969,1718879435345,-500.0,0.00013698,2]
[329966970,1718879435354,-500.0,0.00013698,2]
[329966971,1718879435364,-500.0,0.00013698,2]
[329966972,1718879435373,-625.41607503,0.00013698,2]
[329966973,1718879435382,-504.36,0.00013698,2]
[329966974,1718879435391,-500.0,0.00013698,2]
[329966975,1718879435401,-500.0,0.00013698,2]
[329966976,1718879435410,-151.0,0.00013698,2]
[329966977,1718879435420,-500.0,0.00013698,2]
[329966978,1718879435429,-500.0,0.00013698,2]
[329966979,1718879435439,-500.0,0.00013698,2]
[329966980,1718879435448,-530.58,0.00013698,2]
[329966981,1718879435459,-500.0,0.00013698,2]
[329966982,1718879435470,-500.0,0.00013698,2]
[329966983,1718879435480,-500.0,0.00013698,2]
[329966984,1718879435490,-151.0,0.00013698,2]
[329966985,1718879435500,-151.0,0.00013698,2]
[329966986,1718879435512,-151.0,0.00013698,2]
[329966987,1718879435522,-500.0,0.00013698,2]
[329966988,1718879435532,-500.0,0.00013698,2]
[329966989,1718879435543,-500.0,0.00013698,2]
[329966990,1718879435553,-657.9,0.00013698,2]
[329966991,1718879435563,-151.0,0.00013698,2]
[329966992,1718879435573,-593.65,0.00013698,2]
[329966993,1718879435583,-500.0,0.00013698,2]
[329966994,1718879435593,-500.0,0.00013698,2]
[329966995,1718879435602,-500.0,0.00013698,2]
[329966996,1718879435612,-500.0,0.00013698,2]
[329966997,1718879435627,-688.34,0.00013698,2]
[329966998,1718879435637,-524.87,0.00013698,2]
[329966999,1718879435646,-500.0,0.00013698,2]
[329967000,1718879435657,-151.0,0.00013698,2]
[329967001,1718879435667,-151.0,0.00013698,2]
[329967002,1718879435677,-500.0,0.00013698,2]
[329967003,1718879435687,-500.0,0.00013698,2]
[329967004,1718879435699,-500.0,0.00013698,2]
[329967005,1718879435710,-175.965339,0.00013698,2]
[329967006,1718879435719,-675.77,0.00013698,2]
[329967007,1718879435728,-500.0,0.00013698,2]
[329967008,1718879435738,-500.0,0.00013698,2]
[329967009,1718879435747,-500.0,0.00013698,2]
[329967010,1718879435757,-557.86,0.00013698,2]
[329967011,1718879435767,-500.0,0.00013698,2]
[329967012,1718879435776,-500.0,0.00013698,2]
[329967013,1718879435785,-500.0,0.00013698,2]
[329967014,1718879435795,-500.0,0.00013698,2]
[329967015,1718879435805,-151.0,0.00013698,2]
[329967016,1718879435815,-151.0,0.00013698,2]
[329967017,1718879435824,-151.0,0.00013698,2]
[329967018,1718879435833,-500.0,0.00013698,2]
[329967019,1718879435842,-618.7,0.00013698,2]
[329967020,1718879435852,-151.0,0.00013698,2]
[329967021,1718879435862,-151.0,0.00013698,2]
[329967022,1718879435873,-500.0,0.00013698,2]
[329967023,1718879435883,-151.0,0.00013698,2]
[329967024,1718879435892,-151.0,0.00013698,2]
[329967025,1718879435901,-187.026269,0.00013698,2]
[329967026,1718879435910,-500.0,0.00013698,2]
[329967027,1718879435919,-500.0,0.00013698,2]
[329967028,1718879435929,-500.0,0.00013698,2]
[329967029,1718879435939,-500.0,0.00013698,2]
[329967030,1718879435948,-151.0,0.00013698,2]
[329967031,1718879435958,-1266.67,0.00013698,2]
[329967032,1718879435967,-1049.52,0.00013698,2]
[329967033,1718879435977,-151.0,0.00013698,2]
[329967034,1718879435987,-500.0,0.00013698,2]
[329967035,1718879435996,-500.0,0.00013698,2]
[329967036,1718879436007,-500.0,0.00013698,2]
[329967037,1718879436016,-781.69,0.00013698,2]
[329967038,1718879436026,-500.0,0.00013698,2]
[329967039,1718879436035,-500.0,0.00013698,2]
[329967040,1718879436044,-151.0,0.00013698,2]
[329967041,1718879436054,-1789.42,0.00013698,2]
[329967042,1718879436063,-500.0,0.00013698,2]
[329967043,1718879436072,-863.4,0.00013698,2]
[329967044,1718879436081,-151.0,0.00013698,2]
[329967045,1718879436091,-151.0,0.00013698,2]
[329967046,1718879436100,-500.0,0.00013698,2]
[329967047,1718879436109,-719.62,0.00013698,2]
[329967048,1718879436119,-4272.42,0.00013698,2]
[329967049,1718879436129,-2012.66,0.00013698,2]
[329967050,1718879436138,-151.0,0.00013698,2]
[329967051,1718879436147,-1186.08,0.00013698,2]
[329967052,1718879436156,-151.0,0.00013698,2]
[329967053,1718879436164,-526.51,0.00013698,2]
[329967054,1718879436174,-686.93,0.00013698,2]
[329967055,1718879436183,-500.0,0.00013698,2]
[329967056,1718879436192,-896.52,0.00013698,2]
[329967057,1718879436202,-1408.36,0.00013698,2]
[329967058,1718879436211,-7929.89,0.00013698,2]
[329967059,1718879436220,-2755.3,0.00013698,2]
[329967060,1718879436229,-2063.79,0.00013698,2]
[329967061,1718879436239,-7595.89,0.00013698,2]
[329967062,1718879436249,-500.0,0.00013698,2]